Cogmind - Beta 17 @@@ ROGUE MODE // 2026.07.13 @ 17:12:25 // Winter2019/RPGLIKE Player: Gallgagger Result: Self-destructed Performance ------------- Evolutions (0) 0 Regions Visited (4) 800 Robots Destroyed (3) 15 Value Destroyed (30) 30 Prototype IDs (24) 480 Alien Tech Used (0) 0 Bonus (93) 93 TOTAL SCORE: 1418 Bonus ------- Aligned with FarCom 300 Friendly Fire -207 Cogmind --------- Core Integrity 224/600 Matter 174/300 Energy 100/100 System Corruption 0% Temperature Cool (1) Movement Flying (40) Location -9/Mines Parts ------- > --- POWER (1) -------- (None) > --- PROPULSION (2) --- Flight Unit > --- UTILITY (1) ------ Experimental Sensor Array > --- WEAPON (2) ------- YOLO Cannon > --- INVENTORY (0) ---- (None) Peak State ------------ > --- POWER ------------ (None) > --- PROPULSION ------- Flight Unit Flight Unit > --- UTILITY ---------- Experimental Sensor Array > --- WEAPON ----------- YOLO Cannon > --- INVENTORY -------- (None) [Rating: 31] Favorites ----------- Power None Propulsion Flight Unit Flight Unit Flight Unit Utility Experimental Sensor Array Device Experimental Sensor Array Weapon Heavy Battle Rifle Energy Cannon YOLO Cannon Ballistic Gun Heavy Battle Rifle Build | -11 -10 -10 -10 -9 ------- Run | Yrd Mat Min Exi Min Slots Evolved 2 | . 1 . 1 . Power . | . . . . . Propulsion 1 | . 1 . . . Utility . | . . . . . Weapon 1 | . . . 1 . Parts Attached 6 | 1 2 2 1 . Power . | . . . . . Engine . | . . . . . Core . | . . . . . Reactor . | . . . . . Propulsion 2 | . 2 . . . Treads . | . . . . . Leg . | . . . . . Wheel . | . . . . . Hover . | . . . . . Flight 2 | . 2 . . . Utility 1 | . . 1 . . Device 1 | . . 1 . . Storage . | . . . . . Processor . | . . . . . Hackware . | . . . . . Protection . | . . . . . Artifact . | . . . . . Weapon 3 | 1 . 1 1 . Energy Gun . | . . . . . Energy Cannon 1 | . . . 1 . Ballistic Gun 2 | 1 . 1 . . Ballistic Cannon . | . . . . . Launcher . | . . . . . Special Weapon . | . . . . . Impact Weapon . | . . . . . Slashing Weapon . | . . . . . Piercing Weapon . | . . . . . Special Melee Weapon . | . . . . . Unidentified Prototypes 1 | . . 1 . . Parts Lost 1 | . . . 1 . Power . | . . . . . Propulsion 1 | . . . 1 . Utility . | . . . . . Weapon . | . . . . . Highest Loss Streak 1 | . . . 1 . To Critical Strikes . | . . . . . Average Backups . | . . . . . Power . | . . . . . Propulsion . | . . . . . Utility . | . . . . . Weapon . | . . . . . Tool/Special . | . . . . . Unused Backups . | . . . . . Power . | . . . . . Propulsion . | . . . . . Utility . | . . . . . Weapon . | . . . . . Tool/Special . | . . . . . Average Slot Usage (%) 62 | . 39 78 70 50 Flight 29 | . 16 40 33 16 Device 12 | . . 18 18 16 Energy Cannon 2 | . . . 7 16 Ballistic Gun 17 | . 23 20 11 . Peak Build Rating 31 | 1 3 15 31 30 Average Rating 12 | . 1 13 22 30 On Entrance 9 | . 1 3 15 30 Avg Prop Armor Cover (%) . | . . . . . Naked Turns . | . . . . . Heaviest Build 19 | 1 1 5 19 19 Greatest Support 23 | 3 8 8 23 19 Greatest Overweight (x) . | . . . . . Average Overweight (x) . | . . . . . Largest Inventory Capacity . | . . . . . Average Capacity . | . . . . . Most Carried . | . . . . . Average Carried . | . . . . . Final Capacity . | . . . . . Final Carried . | . . . . . Class Distribution -------------------- 100% | Mutant Dominant Class ---------------- Mutant | -10/Materials Mutant | -10/Mines Mutant | -10/Exiles Mutant | -9/Mines Resources | -11 -10 -10 -10 -9 ----------- Run | Yrd Mat Min Exi Min Matter Collected 137 | . 97 40 . . Remotely . | . . . . . Salvage Created 71 | . 71 . . . Parts 6 | . 6 . . . Haulers Intercepted . | . . . . . Recyclers Shooed . | . . . . . Parts Field Recycled . | . . . . . Retrieved Matter . | . . . . . Parts Self-Destructed . | . . . . . Prevented . | . . . . . Parts Restored . | . . . . . Kills | -11 -10 -10 -10 -9 ------- Run | Yrd Mat Min Exi Min Combat Hostiles Destroyed 3 | . 3 . . . Guns 3 | . 3 . . . Classes Destroyed 1 | . 1 . . . Swarmer 3 | . 3 . . . Best Kill Streak 2 | . 2 . . . Combat Bots Only 2 | . 2 . . . Max Kills in Single Turn 1 | . 1 . . . Gunslinging . | . . . . . Exploded . | . . . . . Melee . | . . . . . Uniques/NPCs Destroyed . | . . . . . Combat | -11 -10 -10 -10 -9 -------- Run | Yrd Mat Min Exi Min Hostile Shots Fired 79 | . 41 34 1 3 Missed 41 | . 19 21 . 1 Hits 38 | . 22 13 1 2 Projectile 38 | . 22 13 1 2 Critical Strikes 1 | . 1 . . . Damage Taken 444 | . 189 166 69 20 Core 376 | . 167 138 55 16 Absorbed by Shields . | . . . . . Redirected to Core 230 | . 64 95 55 16 Core Remaining (%) 100 | 100 . . . . Volleys Fired 9 | . 8 . 1 . Largest 1 | . 1 . 1 . Hottest 100 | . 20 . 100 . Shots Fired 9 | . 8 . 1 . Gun 8 | . 8 . . . Cannon 1 | . . . 1 . Launcher . | . . . . . Special . | . . . . . Kinetic 8 | . 8 . . . Thermal 1 | . . . 1 . Explosive . | . . . . . Electromagnetic . | . . . . . Robot Hit Streak 3 | . 3 . . . Robot Miss Streak 1 | . 1 . . . Penetration Max . | . . . . . Secondary Targets . | . . . . . Shots Hit Robots 5 | . 5 . . . Core Hits 4 | . 4 . . . Critical Kills . | . . . . . Critical Parts Destroyed . | . . . . . Critical Strikes . | . . . . . Melee Attacks . | . . . . . Impact . | . . . . . Slashing . | . . . . . Piercing . | . . . . . Sneak Attacks . | . . . . . Combat Hostiles . | . . . . . Follow-up Attacks . | . . . . . Damage Inflicted 108 | . 39 . 69 . Guns 39 | . 39 . . . Cannons . | . . . . . Explosions 69 | . . . 69 . Melee . | . . . . . Ramming . | . . . . . Kinetic 39 | . 39 . . . Thermal 69 | . . . 69 . Explosive . | . . . . . Electromagnetic . | . . . . . Impact . | . . . . . Slashing . | . . . . . Piercing . | . . . . . Highest Corruption . | . . . . . Average Corruption . | . . . . . Corruption Purged . | . . . . . Corruption Blocked . | . . . . . Overload Shots . | . . . . . Overflow Damage . | . . . . . Projectiles . | . . . . . Explosions . | . . . . . Melee . | . . . . . Knockbacks . | . . . . . Impact . | . . . . . Kinetic . | . . . . . Secondary . | . . . . . Self-Inflicted Damage . | . . . . . Shots . | . . . . . Rammed . | . . . . . Targets Rammed . | . . . . . Kicked . | . . . . . Crushed . | . . . . . Highest Temperature 7 | . . . 7 . Average Temperature 4 | . . . 4 . Received Heat Transfer 117 | . 18 87 . 12 Siege Activations . | . . . . . Martial Activations . | . . . . . Shielding Activations . | . . . . . Robots Disrupted . | . . . . . Combat Hostiles . | . . . . . Robots Corrupted . | . . . . . Combat Hostiles . | . . . . . Parts Fried . | . . . . . Impact Corruptions . | . . . . . Robots Melted . | . . . . . Combat Hostiles . | . . . . . Parts Melted . | . . . . . Heat Transferred 80 | . . . 80 . Parts Sabotaged . | . . . . . Parts Stolen . | . . . . . Parts Stripped . | . . . . . Power Chain Reactions . | . . . . . Alert | -11 -10 -10 -10 -9 ------- Run | Yrd Mat Min Exi Min Maximum Alert Level . | . . . . . Low Security (%) 100 | 100 100 100 . 100 Level 1 . | . . . . . Level 2 . | . . . . . Level 3 . | . . . . . Level 4 . | . . . . . Level 5 . | . . . . . High Security . | . . . . . Max Security . | . . . . . Peak Influence 85 | . 85 78 . . Initial 33 | . . 33 . . Average 36 | . 32 46 . . Influence Increases 260 | . 115 145 . . Destroy 0b10 Robot/C 120 | . 60 60 . . Destroy Leader 20 | . 10 10 . . Lose Combat Pursuer 120 | . 45 75 . . Influence Decreases 260 | . 30 172 58 . Entered New Map 110 | . . 52 58 . Time Decay 110 | . 30 80 . . Lost Ally 40 | . . 40 . . Squads Dispatched 2 | . 1 1 . . Investigation 1 | . 1 . . . Extermination . | . . . . . Reinforcement . | . . . . . Assault 1 | . . 1 . . Garrison . | . . . . . Intercept . | . . . . . Searches Triggered . | . . . . . Construction Impeded . | . . . . . Haulers Reinforced . | . . . . . Active Scanning Responses . | . . . . . Cargo Convoy Interrupts . | . . . . . Stealth | -11 -10 -10 -10 -9 --------- Run | Yrd Mat Min Exi Min Distress Signals . | . . . . . Communications Jammed . | . . . . . Distress Signals . | . . . . . Times Spotted 25 | . 10 12 . 3 Peak Tracking Total 11 | . 4 5 11 3 Tactical Retreats 6 | . 2 3 1 . Traps | -11 -10 -10 -10 -9 ------- Run | Yrd Mat Min Exi Min Traps Triggered 1 | . 1 . . . Indirectly . | . . . . . Trap Hack Attempts . | . . . . . Triggered . | . . . . . Disarmed . | . . . . . Reprogrammed . | . . . . . Reused . | . . . . . Traps Extracted . | . . . . . Installed . | . . . . . Triggered . | . . . . . Machines | -11 -10 -10 -10 -9 ---------- Run | Yrd Mat Min Exi Min Machines Disabled 1 | . . . 1 . Max in Single Turn 1 | . . . 1 . Machines Repaired . | . . . . . Machines Dismantled . | . . . . . Machines Sabotaged . | . . . . . Overloaded Fab Kills . | . . . . . Hacking | -11 -10 -10 -10 -9 --------- Run | Yrd Mat Min Exi Min Machines Accessed 1 | . . . 1 . Terminals . | . . . . . Fabricators . | . . . . . Repair Stations . | . . . . . Recycling Units . | . . . . . Scanalyzers . | . . . . . Garrison Access . | . . . . . Total Hacks 1 | . . . 1 . Successful 1 | . . . 1 . Failed . | . . . . . Catastrophic . | . . . . . Database Lockouts . | . . . . . Manual 1 | . . . 1 . Terminals . | . . . . . Fabricators . | . . . . . Repair Stations . | . . . . . Recycling Units . | . . . . . Scanalyzers . | . . . . . Garrison Access . | . . . . . Terminal Hacks 1 | . . . 1 . Proto ID Catalog 1 | . . . 1 . Fabricator Hacks . | . . . . . Repair Station Hacks . | . . . . . Recycling Unit Hacks . | . . . . . Scanalyzer . | . . . . . Garrison Access Hacks . | . . . . . Unauthorized Hacks . | . . . . . Terminals . | . . . . . Fabricators . | . . . . . Repair Stations . | . . . . . Recycling Units . | . . . . . Scanalyzers . | . . . . . Garrison Access . | . . . . . Data Cores Recovered . | . . . . . Used . | . . . . . Hacking Detections . | . . . . . Full Trace Events . | . . . . . Feedback Events . | . . . . . Feedback Blocked . | . . . . . Robot Schematics Acquired . | . . . . . Robots Built . | . . . . . Authchips . | . . . . . Time . | . . . . . Total Robot Build Rating . | . . . . . Part Schematics Acquired . | . . . . . Parts Built . | . . . . . Authchips . | . . . . . Time . | . . . . . Total Part Build Rating . | . . . . . Part Studies Acquired . | . . . . . Parts Repaired . | . . . . . Time . | . . . . . Parts Recycled . | . . . . . Recycled Matter . | . . . . . Retrieved Matter . | . . . . . Retrieved Components . | . . . . . Parts Scanalyzed . | . . . . . Part Schematics Acquired . | . . . . . Parts Damaged . | . . . . . Bothacking | -11 -10 -10 -10 -9 ------------ Run | Yrd Mat Min Exi Min Used RIF Installer . | . . . . . Robots Hacked . | . . . . . Non-combat . | . . . . . Combat . | . . . . . Robot Hacks Applied . | . . . . . Relay Couplers Released . | . . . . . Fabnet Peak Effective % . | . . . . . Robots Rewired . | . . . . . Allies Hacked . | . . . . . Hacks Repelled . | . . . . . Allies | -11 -10 -10 -10 -9 -------- Run | Yrd Mat Min Exi Min Total Allies 4 | . . 4 . . Largest Group 3 | . . 3 . . Highest-Rated Group 40 | . . 40 . . Highest-Rated Ally 31 | . . 31 . . Total Orders . | . . . . . Ally Attacks 23 | . . 23 . . Total Damage 267 | . . 267 . . Kills 3 | . . 3 . . Allies Corrupted . | . . . . . Allies Melted . | . . . . . Intel | -11 -10 -10 -10 -9 ------- Run | Yrd Mat Min Exi Min Active Infowar (turns) 34 | . . 34 . . Sensors 34 | . . 34 . . Robot Analysis Total . | . . . . . Derelict Logs Recovered 2 | . . 1 . 1 Drone Launches . | . . . . . Drone Recoveries . | . . . . . Exploration | -11 -10 -10 -10 -9 ------------- Run | Yrd Mat Min Exi Min Turns Passed 408 | 10 119 169 86 24 Spaces Moved 955 | 18 217 448 213 59 Core 128 | 18 110 . . . Treads . | . . . . . Legs . | . . . . . Wheels . | . . . . . Hover . | . . . . . Flight 827 | . 107 448 213 59 Fastest Speed 37 | 50 37 37 37 40 Average Speed 39 | 50 43 37 37 40 Slowest Speed 50 | 50 50 37 40 40 Overloaded Moves . | . . . . . Propulsion Burnouts . | . . . . . Robots Hopped 14 | . 2 12 . . Potential Cave-ins . | . . . . . Cave-ins Triggered . | . . . . . Exploration Rate (%) 41 | 3 37 89 61 18 Regions Visited 4 Branch Regions 3 Pre-discovered Areas 2 | . . 1 . 1 Known Exits Taken . | . . . . . Unknown Exits Taken 4 | 1 1 1 1 . Scrap Searched 1 | . . 1 . . Spaces Dug . | . . . . . Terrain Destroyed 1 | . . . 1 . Melee . | . . . . . Projectile . | . . . . . AOE 1 | . . . 1 . Terrain Rammed . | . . . . . Walls Destroyed . | . . . . . Machines Disabled . | . . . . . Actions | -11 -10 -10 -10 -9 --------- Run | Yrd Mat Min Exi Min Total 960 | 18 230 438 215 59 Wait 6 | . 6 . . . Move 925 | 17 212 425 212 59 Hop 12 | . 2 10 . . Pick Up . | . . . . . Fast Attach 5 | 1 2 1 1 . Attach . | . . . . . Detach . | . . . . . Swap 1 | . . 1 . . Drop 2 | . . 1 1 . Fire 9 | . 8 . 1 . Melee . | . . . . . Ram . | . . . . . Kick . | . . . . . Crush . | . . . . . Escape Stasis . | . . . . . Rewire . | . . . . . Trap . | . . . . . Miscellaneous . | . . . . . Route ------- -11/Scrapyard -10/Materials (discovered 3 exits: [*Mat] / [*Min x2]) -10/Mines (discovered 3 exits: [*Mat x2] / *Exi) -10/Exiles -9/Mines (discovered 1 exit: [*Mat]) History --------- Turn | Location | Event 3 | -11/Scrapyard | Discovered new exit (range 15) 11 | -11/Scrapyard | Entered Materials 13 | -10/Materials | Discovered new exit (range 12) 54 | -10/Materials | Discovered new exit (range 16) 98 | -10/Materials | Upgraded with Propulsion slot (x1) 125 | -10/Materials | Discovered new exit (range 14) 130 | -10/Materials | Entered Mines 133 | -10/Mines | Found a damaged Exp. Sensor Array with a note attached 138 | -10/Mines | Found Prototype Device 138 | -10/Mines | Identified Exp. Sensor Array 152 | -10/Mines | Met a Derelict testing a Signal Generator 159 | -10/Mines | A weapon hastily lodged in a ceiling crevice suddenly fell to the ground 174 | -10/Mines | Discovered new exit (range 6) 200 | -10/Mines | Learned location of Storage (-7) 242 | -10/Mines | Discovered new exit (range 8) 256 | -10/Mines | Assisted by bots powering up and referring to "LRC-V3" 284 | -10/Mines | Core integrity fell below 50% 297 | -10/Mines | Deemed a non-threat by the Exiles lab entrance 297 | -10/Mines | Discovered new exit (range 5) 299 | -10/Mines | Entered Exiles 300 | -10/Exiles | Build established: Mutant 308 | -10/Exiles | Met 8R-AWN 315 | -10/Exiles | Met EX-HEX 325 | -10/Exiles | Met EX-BIN 331 | -10/Exiles | Reached level 2 331 | -10/Exiles | Aligned with FarCom system 331 | -10/Exiles | Given EX-Vault access code 339 | -10/Exiles | Opened EX-Vault 342 | -10/Exiles | Upgraded with Weapon slot (x1) 343 | -10/Exiles | Found YOLO Cannon 351 | -10/Exiles | Warned to stay clear of 0b10 Research branches 363 | -10/Exiles | Met EX-DEC 367 | -10/Exiles | Attacked by the Exiles 380 | -10/Exiles | Discovered new exit (range 14) 385 | -10/Exiles | Left Exiles lab with YOLO Cannon 385 | -10/Exiles | Entered Mines 393 | -9/Mines | Discovered new exit (range 5) 400 | -9/Mines | Learned Materials emergency access door positions 409 | -9/Mines | Self-destructed Last Messages --------------- 00365_ EX-DEC: "Oops, I hope HEX didn't hear that..." 00366_ Machine disabled. 00367_ EXILES: Hostile robot within lab perimeter. Defensive protocols time, folks! 00369_ EX-DEC: "Let's see what this bad boy can do..." 00369_ Flight Unit destroyed. 00369_ Knocked back. 00380_ EXIT=FOUND LOCATION=UNKNOWN GOAL=ESCAPE 00386_ T-07 Excavator is excavating. 00393_ EXIT=FOUND 00394_ A derelict emerges from the shadows: "Are any of them following you? I'm here trying to lose some heat after our second raid on Storage failed. Whatever you do stay away from that place, they've tightened security following our previous successful raids." World map confirmed: -7/Storage. 00398_ T-07 Excavator is excavating. 00400_ Acquired derelict log, extracted data. Data stored: Materials emergency access points. Map ----- +----------------------------------------------------+ | ?????????????????????????????? | | ?????????????????????????????? | | ?????????????????????????????? | | ?????????????????????????????? | | ?????????????????????????????? | | ?????????????????????????????? | | ?????????????????????????????? | | ?????????????????????????????? | | ?????????????????????????????? | | ?????????????????????????????? | | ?????????????????????????????? | | ?????????????????????????????? | | ?????????????????????????????? | | ?????????????????????????????? | | ?????????????????????????????? | | ?????????????????????????????? | | ?????????????????????????????? | | ???####??????????????????????? | | ???# ??????????????????????? | | ???# ??????????????????????? | | ???# t#??????????????????????? | | ???# #??????????????????????? | | ???# #??????????????????????? | | ???# #??????????????????????? | | ???# #??????????????????????? | | ???# @#??????????????????????? | | ???# ###????????????????????? | | ???# ########## #?????????? | | ???# #??????????? | | ???## #?????????? | | ????## ##########?????????? | | ?????## ##?????????????? | | ??????## #?????????????? | | ???????### #?????????????? | | ?????????## ##?????????????? | | ??????????### #??????????????? | | ????????????# #??????????????? | | ????????????# #??????????????? | | ????????????# #####??????????? | | ????????????# #??????????? | | ????????????#### #??????????? | | ???????????????# #??????????? | | ???????????????# ###????????? | | ???????????????# ##???????? | | ???????????????# #???????? | | ???????????????## ######## | | ????????????????# | | ??????????????## ##### #### | | ?????????????## #???# #??? | | ????????????## ???# #??? | +----------------------------------------------------+ Best States ------------- Heat Dissipation 25 Energy Generation 5 Energy Capacity 100 Matter Stores 179 Matter Capacity 300 Sight Range 16 Robot Scan Range 20 Terrain Scan Density 10 Evasion (%) 62 Item Schematics ----------------- None Robot Schematics ------------------ None Fabricated ------------ Nothing Repaired ---------- Nothing Studied --------- None Alien Tech Used ----------------- None Achievements -------------- None Challenges ------------ None RPGLIKE | -11 -10 -10 -10 -9 --------- Run | Yrd Mat Min Exi Min Levels Raised 1 | . . . 1 . XP Earned 5050 | 3000 350 850 350 500 XP Spent 2800 | . 500 . 2300 . Upgrades 5 | . 1 . 4 . Propulsion Slot 1 | . 1 . . . Weapon Slot 1 | . . . 1 . Mass Support 3 | . . . 3 . Protomatter Created . | . . . . . Protomatter Decayed 49 | . . 49 . . Game ------ Seed FactorySwarmCanceller Manual? 0 Play Time 00:03:33 Cumulative 660.1 hours Start 2026.07.13 @ 17:09:03 End 2026.07.13 @ 17:12:25 Sessions 1 Manual Loads 0 Difficulty Rogue Special Mode Winter2019/RPGLIKE Game No. 265 Rogue 111 Adventurer 154 Explorer 0 Win Type - Total 22 Types 4/5/4/3/2/1/0/1/1/1 Lore% 95 Gallery% 88 Achievement% 68 Wizard Run 0 Options --------- Layout 0 ASCII 0 Keyboard 0 Movement Numpad Keybinds 0 Fullscreen 2 Font 18/SmallcapsGlow Map View 76x50 Zoom Use 0% Tactical HUD 1 Map Filters NONE Filters NONE Steam 1 RUN: 05bb34bb-7afd-4f63-b97f-40ecd9b1ceae